bitfinex-derivatives/quotes_ETHF0:USTF0_20250403
["timestamp","ask_amount","ask_price","bid_price","bid_amount"]
[1743719799600,1.10204,1815.5,1815.4,1.84567]
[1743719799803,1.1021,1815.4,1815.3,1.10211]
[1743719800407,2.4835,1815.4,1815.3,1.10211]
[1743719803208,2.4835,1815.4,1815.3,2.52531]
[1743719803900,2.4835,1815.4,1815.3,1.10211]
[1743719804305,1.3814,1815.4,1815.3,1.10211]
[1743719804505,3.757,1815.6,1815.5,1.10204]
[1743719804805,12.96115,1815.7,1815.6,1.10198]
[1743719805005,11.8592,1815.7,1815.6,1.10198]
[1743719805207,12.96112,1815.7,1815.6,1.10198]
[1743719805905,1.10198,1815.6,1815.5,1.10199]
[1743719806096,2.55498,1815.6,1815.5,1.10199]
[1743719806706,2.55498,1815.6,1815.5,1.10204]
[1743719807803,6.29998,1815.6,1815.5,1.10204]
[1743719809613,1.10204,1815.5,1815.4,3.24515]
[1743719809917,1.10204,1815.5,1815.3,1.1021]
[1743719809918,1.10216,1815.4,1815.3,1.1021]
[1743719810412,2.51726,1815.4,1815.3,1.1021]
[1743719810713,1.4151,1815.4,1815.3,1.1021]
[1743719810906,2.5172,1815.4,1815.3,1.1021]
[1743719811209,1.4151,1815.4,1815.3,2.4922]
[1743719811414,2.5172,1815.4,1815.3,2.4922]
[1743719811606,1.4151,1815.4,1815.3,2.4922]
[1743719811810,2.5172,1815.4,1815.3,2.4922]
[1743719815110,2.5172,1815.4,1815.3,1.1021]
[1743719815414,1.10216,1815.3,1815.2,42.62113378]
[1743719815714,3.26306,1815.3,1815.2,41.91043378]
[1743719815910,6.99906,1815.3,1815.2,40.80826378]
[1743719816404,3.736,1815.3,1815.2,41.91048378]
[1743719816606,6.32189,1815.5,1815.4,1.1021]
[1743719817209,1.1021,1815.4,1815.3,3.2257]
[1743719817402,2.5849,1815.4,1815.3,3.2257]
[1743719820014,2.5849,1815.4,1815.3,2.1236]
[1743719820210,2.5849,1815.4,1815.3,3.22576]
[1743719820812,1.10216,1815.3,1815.2,1.11044378]
[1743719821007,2.59336,1815.3,1815.2,1.11044378]
[1743719825909,1.10214,1815.4,1815.3,1.10216]
[1743719826111,2.50924,1815.4,1815.3,2.62066]
[1743719830511,0.7277,1815.6,1815.3,2.62066]
[1743719830706,1.49,1815.6,1815.2,2.76379378]
[1743719830909,1.10214,1815.4,1815.3,1.10211]
[1743719831110,1.10214,1815.4,1815.3,1.10216]
[1743719831316,2.59214,1815.4,1815.3,1.10216]
[1743719833318,6.31614,1815.4,1815.3,1.10216]
[1743719833818,1.10216,1815.3,1815.2,0.00826378]
[1743719834020,2.50786,1815.3,1815.2,0.00826378]
[1743719834319,2.50786,1815.3,1815.2,1.11048378]
[1743719834512,1.4057,1815.3,1815.2,1.11048378]
[1743719834714,4.8261,1815.4,1815.3,1.10216]
[1743719834916,5.1297,1815.4,1815.3,3.21096]
[1743719836226,3.725,1815.5,1815.4,1.1021]
[1743719836524,3.725,1815.5,1815.4,2.5978]
[1743719838327,5.2015,1815.5,1815.4,2.5978]
[1743719839129,1.4765,1815.5,1815.4,2.5978]
[1743719839426,3.724,1815.6,1815.5,1.10204]
[1743719839724,3.2078,1816.4,1816.1,1.10167]
[1743719839928,6.99931,1816.3,1816.2,1.10158]
[1743719840425,6.99831,1816.3,1816.2,1.10158]
[1743719841420,1.10161,1816.2,1816.1,3.36138378]
[1743719841627,2.49051,1816.2,1816.1,3.36138378]
[1743719842644,2.49051,1816.2,1816.1,1.86738378]
[1743719842823,2.49051,1816.2,1816.1,0.00826378]
[1743719843023,5.69831,1816.2,1816.1,0.00826378]
[1743719843223,2.49051,1816.2,1816.1,0.00826378]
[1743719843529,5.69831,1816.2,1816.1,0.00826378]
[1743719845631,11.66631,1816.2,1816.1,0.00826378]
[1743719846330,8.45851,1816.2,1816.1,0.00826378]
[1743719846532,11.66631,1816.2,1816.1,0.00826378]
[1743719846924,8.45851,1816.2,1816.1,1.10993378]
[1743719847122,8.45851,1816.2,1816.1,0.00826378]
[1743719847833,11.66631,1816.2,1816.1,0.00826378]
[1743719848829,14.16631,1816.2,1816.1,0.00826378]
[1743719849531,10.95851,1816.2,1816.1,0.00826378]
[1743719849923,14.16631,1816.2,1816.1,0.00826378]
[1743719850534,11.66631,1816.2,1816.1,0.00826378]
[1743719850733,8.45851,1816.2,1816.1,0.00826378]
[1743719850931,11.66631,1816.2,1816.1,1.10993378]
[1743719851236,11.66631,1816.2,1816.1,0.00826378]
[1743719861545,14.16631,1816.2,1816.1,0.00826378]
[1743719861749,14.25964433,1816.2,1816.1,0.00826378]
[1743719864643,15.48264433,1816.2,1816.1,0.00826378]
[1743719866140,15.48264472,1816.2,1816.1,0.00826378]
[1743719866943,15.4826418,1816.2,1816.1,0.00826378]
[1743719867842,15.48264662,1816.2,1816.1,0.00826378]
[1743719872045,15.38931,1816.2,1816.1,0.00826378]
[1743719877145,9.42131,1816.2,1816.1,0.00826378]
[1743719884362,3.2078,1816.4,1816.3,1.10155]
[1743719884661,1.10137,1816.7,1816.6,1.10134]
[1743719884861,3.2078,1816.8,1816.7,1.10131]
[1743719885059,8.03205,1816.8,1816.7,1.10131]
[1743719885466,9.51165,1816.8,1816.7,1.10131]
[1743719885966,9.51165,1816.8,1816.7,2.56371]
[1743719887468,9.51165,1816.8,1816.7,1.4624]
[1743719888070,1.10131,1816.7,1816.6,1.81142]
[1743719888259,2.56561,1816.7,1816.6,1.81142]
[1743719890668,1.10131,1816.7,1816.6,1.81142]
[1743719891068,1.10143,1816.5,1816.4,0.7355]
[1743719891265,1.10155,1816.3,1816.2,3.20546]
[1743719891769,3.27263,1816.4,1816.3,1.10155]
[1743719891970,3.27263,1816.4,1816.3,1.3682]
[1743719892268,1.10155,1816.3,1816.2,1.83726]
[1743719892470,1.85304,1816.4,1816.3,1.10155]
[1743719892671,1.10155,1816.3,1816.2,1.83726]
[1743719893763,1.10155,1816.3,1816.2,0.7357]
[1743719893973,1.10161,1816.2,1816.1,0.00826378]
[1743719894178,6.9288,1816.2,1816.1,1.10993378]
[1743719894474,3.721,1816.2,1816.1,1.10993378]
[1743719894772,4.82261,1816.2,1816.1,1.10993378]
[1743719895973,3.721,1816.2,1816.1,1.10993378]
[1743719896171,4.82261,1816.2,1816.1,1.10993378]
[1743719896375,3.721,1816.2,1816.1,1.10993378]
[1743719896577,4.82261,1816.2,1816.1,1.10993378]
[1743719900779,3.721,1816.2,1816.1,1.10993378]
[1743719901877,3.9593,1816.4,1816.3,1.10155]
[1743719902076,7.6803,1816.4,1816.3,1.10155]
[1743719902377,6.9288,1816.4,1816.3,1.10155]
[1743719902576,4.82249,1816.4,1816.3,2.58705]
[1743719902778,3.721,1816.4,1816.3,3.33795]
[1743719902970,4.82249,1816.4,1816.3,3.33795]
[1743719903273,3.721,1816.4,1816.3,3.33795]
[1743719903467,4.82249,1816.4,1816.3,3.33795]
[1743719903971,3.721,1816.4,1816.3,3.33795]
[1743719904772,4.82247,1816.5,1816.4,1.10149]
[1743719904966,4.82247,1816.5,1816.4,2.58699]
[1743719905367,4.82247,1816.5,1816.4,1.10149]
[1743719906279,4.82248,1816.5,1816.4,1.10149]
[1743719906780,3.8929,1816.6,1816.5,1.10143]
[1743719906972,5.2348,1816.6,1816.5,1.10143]
[1743719907277,6.33617,1816.6,1816.5,1.10143]
[1743719907870,5.2348,1816.6,1816.5,1.10143]
[1743719908071,5.0128,1816.8,1816.4,2.75361]
[1743719908381,5.0128,1816.8,1816.7,1.10131]
[1743719908382,6.4456,1816.8,1816.7,1.10131]
[1743719908574,10.1666,1816.8,1816.7,1.10131]
[1743719909277,6.4456,1816.8,1816.7,1.10131]
[1743719909483,9.0653,1816.8,1816.7,1.10131]
[1743719909671,10.16655,1816.8,1816.7,1.85201]
[1743719909972,3.2078,1817.0,1816.9,1.10119]
[1743719910169,4.6406,1817.0,1816.9,1.10119]
[1743719910666,4.6406,1817.0,1816.9,2.60519]
[1743719911876,5.74173,1817.0,1816.9,1.10119]
[1743719913174,2.53393,1817.0,1816.9,1.10119]
[1743719913580,1.4328,1817.0,1816.9,1.10119]
[1743719913780,3.721,1817.1,1817.0,1.10113]
[1743719914279,6.19023,1817.2,1817.1,1.10107]
[1743719914671,5.0892,1817.2,1817.1,1.10107]
[1743719915170,1.3692,1817.2,1817.1,1.80237]
[1743719915371,2.47021,1817.2,1817.1,2.54347]
[1743719916074,2.47021,1817.2,1817.1,1.10107]
[1743719916383,7.91557538,1817.2,1816.0,5.50856]
[1743719916581,1.10155,1816.3,1816.2,3.23676]
[1743719917380,1.4822,1816.3,1816.2,3.23676]
[1743719917967,1.4822,1816.3,1816.1,1.10990378]
[1743719918171,1.4822,1816.3,1816.2,1.10161]
[1743719918973,1.4822,1816.3,1816.2,2.61581]
[1743719920676,3.2078,1816.6,1816.3,2.75389]
[1743719920982,3.72,1816.7,1816.6,1.10137]
[1743719921283,4.30906,1816.8,1816.5,2.75348]
[1743719921580,5.52014,1816.9,1816.8,1.10125]
[1743719921779,7.6267,1816.9,1816.8,1.10125]
[1743719922084,3.72,1816.9,1816.8,3.60125]
[1743719922278,1.5117,1817.0,1816.9,1.10119]
[1743719922582,2.61283,1817.0,1816.9,1.10119]
[1743719923483,1.5117,1817.0,1816.9,1.10119]
[1743719923679,2.61283,1817.0,1816.9,1.10119]
[1743719924082,1.5117,1817.0,1816.9,1.10119]
[1743719924687,2.61283,1817.0,1816.9,1.10119]
[1743719924880,1.5117,1817.0,1816.9,1.10119]
[1743719925781,3.72,1817.2,1817.1,1.10107]
[1743719926085,4.82101,1817.2,1817.1,1.10107]
[1743719926584,1.10107,1817.1,1817.0,1.10937378]
[1743719926786,5.70647,1817.1,1817.0,0.00826378]
[1743719928185,6.41927,1817.1,1817.0,0.00826378]
[1743719931485,9.01255791,1817.1,1817.0,0.00826378]
[1743719932592,9.01255791,1817.1,1817.0,3.78e-06]
[1743719933396,1.10149,1816.4,1816.3,1.10152]
[1743719933580,4.82149,1816.4,1816.3,1.10152]
[1743719934189,6.23159,1816.4,1816.3,1.10152]
[1743719935286,6.23159,1816.4,1816.2,1.50696378]
[1743719935287,1.10155,1816.3,1816.2,0.00826378]
[1743719935481,2.51165,1816.3,1816.2,0.00826378]
[1743719939695,2.51165,1816.3,1816.2,1.10987378]
[1743719939996,2.51165,1816.3,1816.2,0.00826378]
[1743719943800,2.60498234,1816.3,1816.2,0.00826378]
[1743719944185,5.10498234,1816.3,1816.2,0.00826378]
[1743719944391,2.60498234,1816.3,1816.2,0.00826378]
[1743719944688,6.23865,1816.3,1816.2,0.00826378]
[1743719945798,6.33197781,1816.3,1816.2,0.00826378]
[1743719946593,6.3319798,1816.3,1816.2,0.00826378]
[1743719947093,6.23865,1816.3,1816.2,0.00826378]
[1743719948002,6.94355,1816.3,1816.2,0.00826378]
[1743719948499,7.03688055,1816.3,1816.2,0.00826378]
[1743719948697,9.53688055,1816.3,1816.2,3.78e-06]
[1743719948893,1.10198,1815.6,1815.5,1.8175]
[1743719949099,1.10198,1815.6,1815.5,1.8553]
[1743719949301,1.10198,1815.6,1815.5,0.7533]
[1743719949801,2.52848,1815.6,1815.5,1.85534]
[1743719950100,2.52848,1815.6,1815.5,2.1681]
[1743719950802,1.10204,1815.5,1815.4,0.00826378]
[1743719951099,6.25954,1815.5,1815.4,0.00826378]
[1743719952696,6.35291466,1815.5,1815.4,0.00826378]
[1743719953606,2.62191466,1815.5,1815.4,0.00826378]
[1743719953902,6.35391466,1815.5,1815.4,0.00826378]
[1743719954302,6.26054,1815.5,1815.4,0.00826378]
[1743719954498,8.85391497,1815.5,1815.4,0.00826378]
[1743719954703,1.1024,1814.9,1814.8,2.1978]
[1743719955000,1.1024,1814.9,1814.8,3.30026]
[1743719955195,1.1024,1814.9,1814.8,2.1978]
[1743719955400,1.1024,1814.9,1814.7,0.7072]
[1743719955401,1.10246,1814.8,1814.7,0.7072]
[1743719955802,1.10246,1814.8,1814.7,2.2048]
[1743719956003,2.57846,1814.8,1814.7,2.2048]
[1743719956702,1.10252,1814.7,1814.6,0.00826378]
[1743719957002,6.31552,1814.7,1814.6,0.00826378]
[1743719957202,6.31552,1814.7,1814.6,1.43836378]
[1743719957703,2.75653,1814.6,1813.3,2.7584]
[1743719957904,1.10319,1813.6,1813.5,1.10324]
[1743719958204,4.88418,1813.7,1813.5,1.4301]
[1743719958404,1.10319,1813.6,1813.5,2.53332]
[1743719958598,4.88417,1813.7,1813.5,2.53332]
[1743719958798,1.10319,1813.6,1813.5,2.53332]
[1743719959099,1.10319,1813.6,1813.5,1.4301]
[1743719959704,2.59949,1813.6,1813.5,1.4301]
[1743719959901,1.10325,1813.5,1813.4,0.00826378]
[1743719960092,5.80735,1813.5,1813.4,0.00826378]
[1743719963502,9.58435,1813.5,1813.4,0.00826378]
[1743719966210,12.08435,1813.5,1813.4,0.00826378]
[1743719967612,9.58435,1813.5,1813.4,0.00826378]
[1743719967812,9.58835,1813.5,1813.4,0.00826378]
[1743719974909,9.681839,1813.5,1813.4,0.00826378]
[1743719975208,9.681839,1813.5,1812.9,3.34301]
[1743719975209,1.10356,1813.0,1812.9,3.34301]
[1743719975512,4.87056,1813.0,1812.9,3.34301]
[1743719975710,4.87056,1813.0,1812.9,2.2394]
[1743719975910,4.87056,1813.0,1812.9,3.34302]
[1743719978106,3.767,1813.0,1812.9,3.34302]
[1743719978514,3.2078,1813.2,1812.9,4.7394]
[1743719978711,3.763,1813.1,1813.0,1.10356]
[1743719979114,4.8665,1813.1,1813.0,1.10356]
[1743719982113,1.10356,1813.0,1812.9,1.83598]
[1743719982320,2.60586,1813.0,1812.9,1.83598]
[1743719982828,1.5023,1813.0,1812.9,1.83598]
[1743719983015,2.60586,1813.0,1812.9,1.83598]
[1743719986421,2.60586,1813.0,1812.9,1.10358]
[1743719988426,1.5023,1813.0,1812.9,1.10358]
[1743719988731,2.60586,1813.0,1812.9,1.10358]
[1743719990125,2.60586,1813.0,1812.8,0.00826378]
[1743719990331,1.10362,1812.9,1812.8,1.11189378]
[1743719990635,2.51392,1812.9,1812.8,1.11189378]
[1743719993027,2.51392,1812.9,1812.8,2.61979378]
[1743719993235,2.51392,1812.9,1812.8,0.00826378]
[1743720001337,1.10362,1812.9,1812.8,1.11194378]
[1743720001543,4.83162,1812.9,1812.8,1.11194378]
[1743720001746,8.03942,1812.9,1812.8,1.11194378]
[1743720001951,4.83162,1812.9,1812.8,1.11194378]
[1743720002254,8.03942,1812.9,1812.8,1.11194378]
[1743720002842,8.03942,1812.9,1812.8,2.48544378]
[1743720004251,6.9358,1812.9,1812.8,2.48544378]
[1743720004453,4.83162,1812.9,1812.8,2.48544378]
[1743720005449,5.2296,1813.0,1812.9,1.10362]
[1743720005752,1.5006,1813.0,1812.9,2.47712]
[1743720005953,5.2296,1813.0,1812.9,2.47712]
[1743720006255,6.33316,1813.0,1812.9,2.47712]
[1743720006458,1.10362,1812.9,1812.8,0.00826378]
[1743720006654,5.78182,1812.9,1812.8,0.00826378]
[1743720006854,6.48682,1812.9,1812.8,0.00826378]
[1743720007055,3.741,1813.0,1812.9,1.10362]
[1743720007255,3.741,1813.0,1812.9,3.31072]
[1743720008357,0.705,1813.5,1812.9,7.9149]
[1743720008550,1.4704,1813.4,1813.3,1.10338]
[1743720008746,2.57371,1813.4,1813.3,3.30498]
[1743720009353,1.4704,1813.4,1813.3,3.30498]
[1743720010454,5.55225,1813.5,1813.4,1.10331]
[1743720010856,1.10331,1813.4,1813.3,3.30493]
[1743720011050,3.2078,1813.7,1813.3,2.75842]
[1743720011253,3.75526378,1813.8,1813.4,0.6937]
[1743720011460,1.10325,1813.5,1813.4,1.10331]
[1743720011859,1.10331,1813.4,1813.3,1.10333]
[1743720012062,1.4633,1813.4,1813.3,1.10333]
[1743720012358,1.10338,1813.3,1813.2,4.6864]
[1743720012661,1.1034,1813.3,1813.2,1.10339]
[1743720012850,2.56666,1813.4,1813.3,1.10338]
[1743720013053,1.4633,1813.4,1813.3,1.10338]
[1743720014061,2.56661,1813.4,1813.3,1.10338]
[1743720016354,1.10338,1813.3,1813.2,2.58198]
[1743720017754,2.56667,1813.4,1813.3,1.10338]
[1743720017957,2.56661,1813.4,1813.3,1.10338]
[1743720018162,1.4633,1813.4,1813.3,1.10338]
[1743720018563,3.75,1813.5,1813.4,1.10331]
[1743720018764,2.61861,1813.6,1813.5,1.10325]
[1743720019164,2.61861,1813.6,1813.5,2.59505]
[1743720019366,2.61859,1813.6,1813.5,2.59505]
[1743720019864,1.5154,1813.6,1813.5,2.59505]
[1743720020068,2.61859,1813.6,1813.5,2.59505]
[1743720020366,2.61859,1813.6,1813.5,1.10325]
[1743720020560,1.10334,1813.5,1813.4,1.1033]
[1743720020761,1.10338,1813.4,1813.3,1.10335]
[1743720020961,4.85638,1813.4,1813.3,1.10335]
[1743720024266,6.22638,1813.4,1813.3,1.10335]
[1743720025167,1.10343,1813.3,1813.2,1.10338]
[1743720025468,3.22033,1813.3,1813.2,1.10338]
[1743720028569,2.1169,1813.3,1813.2,1.10338]
[1743720028766,3.22028,1813.3,1813.2,1.10338]
[1743720030063,2.1169,1813.3,1813.2,1.10338]
[1743720030358,3.22028,1813.3,1813.2,1.10338]
[1743720039269,1.1033,1813.5,1813.4,1.10331]
[1743720039475,6.2958,1813.5,1813.4,1.10331]
[1743720039675,3.9625,1813.6,1813.5,1.10325]
[1743720040077,0.7547,1813.6,1813.5,1.10325]
[1743720041373,6.29563,1813.7,1813.6,1.10319]
[1743720041880,10.25623,1813.7,1813.6,1.10319]
[1743720042075,1.10325,1813.6,1813.5,1.1032]
[1743720042276,2.56775,1813.6,1813.5,1.1032]
[1743720042778,1.10348,1813.2,1813.1,1.10344]
[1743720042978,4.83148,1813.2,1813.1,1.10344]
[1743720043673,6.27268,1813.2,1813.1,1.10344]
[1743720045467,5.1692,1813.2,1813.1,1.10344]
[1743720045672,6.27264,1813.2,1813.1,1.10344]
[1743720045875,5.1692,1813.2,1813.1,1.10344]
[1743720046184,6.27264,1813.2,1813.1,1.10344]
[1743720046479,1.10355,1813.1,1813.0,1.10351]
[1743720046681,2.53095,1813.1,1813.0,1.10351]
[1743720047274,3.24525,1813.1,1813.0,1.10351]
[1743720053082,2.53095,1813.1,1813.0,1.10351]
[1743720062004,1.10362,1812.9,1812.8,1.11193378]
[1743720062194,4.83162,1812.9,1812.8,0.00826378]
[1743720062499,7.02252,1812.9,1812.8,0.00826378]
[1743720063088,7.02252,1812.9,1812.8,1.11194378]
[1743720063999,7.02252,1812.9,1812.8,0.00826378]
[1743720065193,9.61603579,1812.9,1812.8,0.00826378]
[1743720065592,7.02252,1812.9,1812.8,0.00826378]
[1743720067287,7.11603354,1812.9,1812.8,0.00826378]
[1743720067489,7.02252,1812.9,1812.8,0.00826378]
[1743720067894,7.11603467,1812.9,1812.8,0.00826378]
[1743720068199,7.02252,1812.9,1812.8,0.00826378]
[1743720068398,7.11603581,1812.9,1812.8,0.00826378]
[1743720069103,7.11603273,1812.9,1812.8,0.00826378]
[1743720069295,9.61603273,1812.9,1812.8,0.00826378]
[1743720069896,9.52252,1812.9,1812.8,0.00826378]
[1743720070097,9.61603968,1812.9,1812.8,0.00826378]
[1743720071494,9.61603642,1812.9,1812.8,0.00826378]
[1743720072700,7.11603642,1812.9,1812.8,0.00826378]
[1743720073204,7.11603531,1812.9,1812.8,0.00826378]
[1743720074493,7.02252,1812.9,1812.8,0.00826378]
[1743720074697,7.11603641,1812.9,1812.8,0.00826378]
[1743720076206,7.11603955,1812.9,1812.8,0.00826378]
[1743720077600,7.02252,1812.9,1812.8,0.00826378]
[1743720077802,7.11603716,1812.9,1812.8,0.00826378]
[1743720079607,7.02252,1812.9,1812.8,0.00826378]
[1743720080110,7.02252,1812.9,1812.8,1.11194378]
[1743720080605,3.29452,1812.9,1812.8,1.11194378]
[1743720080808,7.02252,1812.9,1812.8,1.11194378]
[1743720083309,2.56092,1812.9,1812.8,1.11194378]
[1743720083608,6.28892,1812.9,1812.8,1.11194378]
[1743720083809,3.728,1812.9,1812.8,1.11194378]
[1743720084009,4.83162,1812.9,1812.8,1.11194378]
[1743720085009,3.728,1812.9,1812.8,1.11194378]
[1743720085311,8.03938,1813.0,1812.9,1.10362]
[1743720085512,8.03938,1813.0,1812.9,4.03052]
[1743720086110,4.83158,1813.0,1812.9,4.03052]
[1743720086311,4.83153,1813.1,1813.0,1.10356]
[1743720086506,11.69347,1813.2,1813.1,1.1035]
[1743720086810,10.79947,1813.2,1813.1,1.1035]
[1743720088708,7.07147,1813.2,1813.1,1.1035]
[1743720089009,1.10347,1813.2,1813.1,1.1035]
[1743720089807,1.1035,1813.1,1813.0,2.54371]
[1743720090011,1.1035,1813.1,1813.0,1.4402]
[1743720090211,1.1035,1813.1,1813.0,2.54376]
[1743720090614,2.5348,1813.1,1813.0,2.54376]
[1743720092407,3.2078,1813.2,1813.1,1.1035]
[1743720092612,3.2078,1813.2,1813.1,2.4842]
[1743720092613,8.03824,1813.2,1813.1,2.4842]
[1743720094506,4.83044,1813.2,1813.1,2.4842]
[1743720100113,4.83044,1813.2,1813.1,1.1035]
[1743720101512,6.31874,1813.2,1813.1,1.1035]
[1743720101919,7.01754,1813.2,1813.1,1.1035]
[1743720102411,6.31874,1813.2,1813.1,1.1035]
[1743720102818,6.31874,1813.2,1813.1,2.4866]
[1743720109329,6.31874,1813.2,1813.1,1.1035]
[1743720112523,1.4883,1813.2,1813.1,1.1035]
[1743720112723,4.4402,1813.4,1813.3,1.10338]
[1743720112923,5.9294,1813.4,1813.3,1.10338]
[1743720113419,5.9294,1813.4,1813.3,2.55378]
[1743720116331,5.9294,1813.4,1813.3,1.10338]
[1743720117730,2.2034,1813.4,1813.3,1.10338]
[1743720117930,1.4892,1813.4,1813.3,1.10338]
[1743720118129,1.10317,1813.7,1813.4,2.75816]
[1743720118130,0.7311,1813.7,1813.4,2.75816]
[1743720118330,2.1913,1813.7,1813.6,1.10319]
[1743720120434,3.29443,1813.7,1813.6,1.10319]
[1743720120636,2.1913,1813.7,1813.6,1.10319]
[1743720120934,3.29443,1813.7,1813.6,1.10319]
[1743720121627,2.1913,1813.7,1813.6,1.10319]
[1743720127137,2.1913,1813.7,1813.6,2.48579]
[1743720127535,0.00826378,1813.8,1813.6,1.3826]
[1743720127840,0.00826378,1813.8,1813.7,1.10313]
[1743720128029,0.00826378,1813.8,1813.7,3.34993]
[1743720128229,0.00826378,1813.8,1813.7,5.84993]
[1743720129126,1.80951,1814.3,1813.9,2.75739]
[1743720129330,1.476,1814.1,1814.0,3.34935]
[1743720129934,1.476,1814.1,1814.0,1.10295]
[1743720130241,2.57889,1814.1,1814.0,1.10295]
[1743720130537,1.10295,1814.0,1813.9,1.11122378]
[1743720130736,2.47985,1814.0,1813.9,1.11122378]
[1743720130932,3.20525,1814.0,1813.9,1.11122378]
[1743720131235,3.20525,1814.0,1813.9,0.00826378]
[1743720131444,6.41305,1814.0,1813.9,0.00826378]
[1743720131835,1.10307,1813.8,1813.7,1.10308]
[1743720132034,8.03487,1813.8,1813.7,1.10308]
[1743720132432,8.76527,1813.8,1813.7,1.10308]
[1743720133035,7.6622,1813.8,1813.7,1.10308]
[1743720133543,9.0391,1813.8,1813.7,1.10308]
[1743720133737,5.3151,1813.8,1813.7,1.10308]
[1743720136044,2.1073,1813.8,1813.7,4.31088]
[1743720136732,2.1073,1813.8,1813.7,5.73028]
[1743720137746,2.1073,1813.8,1813.7,1.10308]
[1743720137943,3.21037,1813.8,1813.7,1.10308]
[1743720138338,2.1073,1813.8,1813.7,1.10308]
[1743720139544,3.21037,1813.8,1813.7,1.10308]
[1743720139840,1.10313,1813.7,1813.6,1.11140378]
[1743720140045,3.22583,1813.7,1813.6,0.00826378]
[1743720140243,3.22583,1813.7,1813.6,1.11145378]
[1743720140545,5.72583,1813.7,1813.6,0.00826378]
[1743720143046,5.1121,1813.3,1813.2,1.10339]
[1743720144240,5.855,1813.3,1813.2,1.10339]
[1743720144435,6.95838,1813.3,1813.2,1.10339]
[1743720144633,5.855,1813.3,1813.2,1.10339]
[1743720145239,8.72585,1813.7,1813.2,1.10339]
[1743720145240,5.155,1813.6,1813.4,1.10331]
[1743720145445,2.9366,1813.6,1813.5,1.10325]
[1743720145646,1.432,1813.6,1813.5,1.10325]
[1743720146246,2.53519,1813.6,1813.5,1.10325]
[1743720147148,1.432,1813.6,1813.5,1.10325]
[1743720150051,2.53519,1813.6,1813.5,1.10325]
[1743720151353,1.432,1813.6,1813.5,1.10325]
[1743720151551,2.53519,1813.6,1813.5,1.10325]
[1743720151757,1.432,1813.6,1813.5,1.10325]
[1743720152051,7.1398,1813.6,1813.1,0.00550918]
[1743720152259,1.10344,1813.2,1813.1,0.00550918]
[1743720152446,4.82644,1813.2,1813.1,0.00550918]
[1743720152647,6.33074,1813.2,1813.1,0.00550918]
[1743720155364,6.33074,1813.2,1813.1,1.10900918]
[1743720156159,6.33074,1813.2,1813.1,0.00550918]
[1743720157665,6.33074,1813.2,1813.1,1.10900918]
[1743720157964,6.33074,1813.2,1813.1,0.00550918]
[1743720158166,6.33074,1813.2,1813.1,1.10900918]
[1743720162968,7.76404,1813.2,1813.1,0.00550918]
[1743720165165,16.32554252,1813.2,1813.1,0.00550918]
[1743720165969,16.32554834,1813.2,1813.1,0.00550918]
[1743720166468,16.3255489,1813.2,1813.1,0.00550918]
[1743720169171,16.32554929,1813.2,1813.1,0.00550918]
[1743720171668,16.32554929,1813.2,1813.1,9.18e-06]
[1743720171870,16.32554929,1813.2,1812.6,1.7983]
[1743720171871,1.10374,1812.7,1812.6,1.7983]
[1743720172060,4.82674,1812.7,1812.6,1.7983]
[1743720172463,6.21844,1812.7,1812.6,1.7983]
[1743720172866,7.87413,1812.7,1812.4,1.81348]
[1743720173067,1.10386,1812.5,1812.4,1.85808]
[1743720173473,2.53046,1812.5,1812.4,1.85808]
[1743720176884,1.10398,1812.3,1812.2,1.10401]
[1743720177075,1.10407,1812.2,1812.1,1.10405]
[1743720177280,2.47967,1812.2,1812.1,1.10405]
[1743720178278,1.3756,1812.2,1812.1,1.10405]
[1743720178473,2.47965,1812.2,1812.1,1.10405]
[1743720181369,2.47965,1812.2,1812.1,2.57245]
[1743720182282,2.47965,1812.2,1812.1,2.57251]
[1743720184074,2.47965,1812.2,1812.1,1.4684]
[1743720184280,2.47965,1812.2,1812.1,2.57251]
[1743720186980,5.968,1812.4,1812.1,4.6762]
[1743720187182,9.691,1812.4,1812.3,1.10398]
[1743720187683,9.691,1812.4,1812.3,3.32298]
[1743720187879,10.79492,1812.4,1812.3,3.32298]
[1743720188084,9.691,1812.4,1812.3,3.32298]
[1743720188286,10.79492,1812.4,1812.3,3.32298]
[1743720191690,4.82692,1812.4,1812.3,3.32298]
[1743720192895,6.33712,1812.4,1812.3,3.32298]
[1743720195199,6.33712,1812.4,1812.3,0.748]
[1743720195397,7.05282,1812.4,1812.3,1.85198]
[1743720197294,7.05282,1812.4,1812.3,0.748]
[1743720197695,7.05282,1812.4,1812.3,1.85198]
[1743720198690,7.05282,1812.4,1812.3,0.748]
[1743720199494,1.10398,1812.3,1812.2,1.10401]
[1743720199697,3.33548,1812.3,1812.2,1.10401]
[1743720201301,1.10405,1812.2,1812.1,3.21195]
[1743720201502,2.54415,1812.2,1812.1,1.80325]
[1743720204003,2.54415,1812.2,1812.1,1.80331]
[1743720204204,2.54415,1812.2,1812.1,0.6992]
[1743720204603,2.54415,1812.2,1812.1,1.80331]
[1743720205104,2.54415,1812.2,1812.1,0.6992]
[1743720205299,1.10429,1811.9,1811.8,1.10426]
[1743720205606,4.82623,1811.9,1811.8,1.81796]
[1743720205792,6.26973,1811.9,1811.8,1.81796]
[1743720206798,5.1655,1811.9,1811.8,1.81796]
[1743720207598,6.26973,1811.9,1811.8,1.81796]
[1743720210396,6.26973,1811.9,1811.8,0.7137]
[1743720210611,1.10435,1811.8,1811.7,1.80609]
[1743720210810,2.56605,1811.8,1811.7,3.22199]
[1743720211803,2.56599,1811.8,1811.7,3.22199]
[1743720211998,1.4617,1811.8,1811.7,3.22199]
[1743720213611,2.56599,1811.8,1811.7,3.22199]